bitfinex/quotes_BTCUSD_20250119
["timestamp","ask_amount","ask_price","bid_price","bid_amount"]
[1737322107713,0.09564,104560.0,104530.0,0.095664]
[1737322107867,0.09564,104560.0,104520.0,0.365111]
[1737322107868,0.381919,104560.0,104520.0,0.365111]
[1737322108223,0.19064,104560.0,104530.0,0.09404794]
[1737322108421,0.095,104550.0,104520.0,0.28751067]
[1737322108567,0.095,104550.0,104530.0,0.095662]
[1737322108766,0.095,104550.0,104530.0,0.0004288]
[1737322108964,0.19901349,104550.0,104530.0,0.0004288]
[1737322109194,0.095,104540.0,104530.0,0.0004288]
[1737322109403,0.095,104550.0,104530.0,0.0960878]
[1737322109647,0.18951349,104540.0,104530.0,0.0004288]
[1737322110456,0.095,104540.0,104530.0,0.0004288]
[1737322110659,0.18951349,104540.0,104530.0,0.0004288]
[1737322110867,0.09451349,104540.0,104530.0,0.0004288]
[1737322111067,0.19017049,104540.0,104530.0,0.0004288]
[1737322111288,0.18951349,104540.0,104510.0,0.287044]
[1737322111492,0.28517149,104540.0,104510.0,0.00050081]
[1737322111709,0.095675,104520.0,104510.0,0.00050081]
[1737322111923,0.221275,104520.0,104510.0,0.00050081]
[1737322112134,0.371275,104520.0,104510.0,0.00041581]
[1737322112342,0.371275,104520.0,104510.0,0.00155213]
[1737322112549,0.371275,104520.0,104510.0,0.00041581]
[1737322112747,0.46578849,104520.0,104510.0,0.00041581]
[1737322112951,0.67909393,104520.0,104510.0,0.00041581]
[1737322113368,0.52119401,104520.0,104510.0,0.00170138]
[1737322113564,0.43634636,104520.0,104510.0,0.00170138]
[1737322114005,0.98634636,104520.0,104510.0,0.00170138]
[1737322114228,0.81325854,104520.0,104510.0,0.00170138]
[1737322114427,0.90893354,104520.0,104510.0,0.00041581]
[1737322114629,0.95713354,104520.0,104510.0,0.00164904]
[1737322114840,0.095,104500.0,104470.0,0.09572]
[1737322115085,0.18989866,104500.0,104470.0,0.00050021]
[1737322115292,0.190685,104510.0,104480.0,0.09451349]
[1737322115510,0.286388,104500.0,104470.0,0.00050021]
[1737322115752,0.03809015,104500.0,104470.0,0.19023149]
[1737322115930,0.7,104490.0,104470.0,0.09451349]
[1737322116129,0.7,104490.0,104470.0,0.08885049]
[1737322116363,0.987122,104490.0,104470.0,0.08885049]
[1737322116572,0.095712,104480.0,104470.0,0.03423683]
[1737322116759,0.891413,104490.0,104440.0,0.00010167]
[1737322116760,0.8135585,104490.0,104440.0,0.00010167]
[1737322116964,0.7,104470.0,104450.0,0.09451349]
[1737322117376,0.268862,104460.0,104440.0,0.0078853]
[1737322117585,0.368864,104460.0,104440.0,0.0078853]
[1737322117791,0.943925,104470.0,104440.0,0.0078853]
[1737322117988,0.7135585,104450.0,104440.0,0.0078853]
[1737322118238,0.8092975,104450.0,104440.0,0.0078853]
[1737322118538,1.02335651,104450.0,104440.0,0.0078853]
[1737322118739,1.02335651,104450.0,104440.0,0.00309537]
[1737322118951,0.92335651,104450.0,104440.0,0.00309537]
[1737322119354,0.91029662,104450.0,104440.0,0.00309537]
[1737322119542,1.02385512,104450.0,104440.0,0.00309537]
[1737322119741,0.0482,104440.0,104410.0,0.01365666]
[1737322119938,0.095767,104420.0,104410.0,0.10817015]
[1737322120142,0.991515,104430.0,104410.0,0.01365666]
[1737322120345,0.19028049,104420.0,104410.0,0.01492193]
[1737322120697,0.195776,104410.0,104400.0,0.00311405]
[1737322120902,0.89451349,104410.0,104400.0,0.00311405]
[1737322121103,0.79451349,104410.0,104400.0,0.00311405]
[1737322121356,0.79451349,104410.0,104400.0,0.001564]
[1737322121511,0.98927103,104410.0,104400.0,0.0010715]
[1737322121704,0.92760218,104410.0,104400.0,0.0010715]
[1737322121945,0.92387649,104410.0,104400.0,0.0010715]
[1737322122159,1.0043463,104410.0,104400.0,0.0010715]
[1737322122491,0.2993463,104410.0,104400.0,0.0010715]
[1737322122705,0.1993463,104410.0,104400.0,0.00228409]
[1737322122913,0.383049,104430.0,104400.0,0.0010715]
[1737322123115,0.19028949,104410.0,104400.0,0.00245276]
[1737322123267,0.19451349,104410.0,104400.0,0.00121521]
[1737322123474,0.1,104410.0,104400.0,0.00245276]
[1737322123681,0.1,104430.0,104410.0,0.09577]
[1737322123880,0.1,104420.0,104410.0,0.15715314]
[1737322124084,0.095755,104440.0,104420.0,0.00123747]
[1737322124262,0.291498,104440.0,104410.0,0.25416165]
[1737322124471,0.1,104440.0,104430.0,0.00123744]
[1737322124693,0.1,104440.0,104420.0,0.28852847]
[1737322124967,0.19574,104450.0,104430.0,0.1467285]
[1737322125174,0.195745,104450.0,104430.0,0.00123744]
[1737322125392,0.1694133,104480.0,104440.0,0.01892658]
[1737322125596,0.15,104480.0,104470.0,0.1287]
[1737322125807,0.15,104480.0,104470.0,0.51037349]
[1737322126020,0.245702,104490.0,104470.0,0.26588972]
[1737322126229,0.038292,104480.0,104470.0,0.26588972]
[1737322126641,0.038292,104480.0,104470.0,0.36175443]
[1737322126773,0.038292,104480.0,104470.0,0.38099278]
[1737322126974,0.1,104500.0,104490.0,0.095702]
[1737322127182,0.1,104510.0,104490.0,0.20424825]
[1737322127367,0.1,104510.0,104490.0,0.10855125]
[1737322127567,0.10090132,104520.0,104490.0,0.10855125]
[1737322127784,0.10090132,104520.0,104490.0,0.10736974]
[1737322128140,0.10090132,104520.0,104490.0,0.01285625]
[1737322128260,0.10090132,104520.0,104490.0,0.20425925]
[1737322128487,0.10090132,104520.0,104500.0,0.095691]
[1737322128686,0.10090132,104520.0,104500.0,0.0457453]
[1737322128687,0.00090132,104520.0,104500.0,0.0457453]
[1737322128929,0.1,104510.0,104500.0,0.0457453]
[1737322129104,0.19451349,104510.0,104500.0,0.00117714]
[1737322129984,0.09451349,104510.0,104500.0,0.00117714]
[1737322130195,0.695,104510.0,104500.0,0.00117714]
[1737322130579,0.00090132,104520.0,104500.0,0.00117714]
[1737322130795,0.09657632,104520.0,104500.0,0.00117714]
[1737322130994,0.00090132,104520.0,104500.0,0.00117714]
[1737322131789,0.10090132,104520.0,104500.0,0.00117714]
[1737322132547,0.19541481,104520.0,104500.0,0.00117714]
[1737322132795,0.1,104510.0,104500.0,0.00117714]
[1737322133025,0.19541481,104520.0,104500.0,0.00117714]
[1737322133277,0.19541481,104520.0,104490.0,0.24119006]
[1737322133538,0.10090132,104520.0,104500.0,0.00125413]
[1737322134560,0.09090132,104520.0,104500.0,0.00125413]
[1737322135841,0.05655428,104510.0,104500.0,0.00125413]
[1737322136060,0.05655428,104510.0,104500.0,0.09694713]
[1737322136447,0.05655428,104510.0,104500.0,0.11597694]
[1737322136683,0.05655428,104510.0,104500.0,0.17018092]
[1737322136684,0.05071943,104510.0,104500.0,0.17018092]
[1737322137015,0.09090132,104520.0,104500.0,0.17018092]
[1737322137166,0.09090132,104540.0,104510.0,0.382731]
[1737322137387,0.00090195,104520.0,104510.0,0.38155549]
[1737322137591,0.09090132,104540.0,104520.0,0.095671]
[1737322137592,0.07037952,104540.0,104520.0,0.095671]
[1737322138073,0.06033076,104540.0,104520.0,0.191349]
[1737322138228,0.06033076,104540.0,104520.0,0.29300233]
[1737322138432,0.06082968,104540.0,104520.0,0.29300233]
[1737322138840,0.00049892,104540.0,104530.0,0.095666]
[1737322139188,0.00049892,104540.0,104530.0,0.24438347]
[1737322139452,0.06033076,104590.0,104540.0,0.03966924]
[1737322139719,0.09857576,104610.0,104590.0,0.095611]
[1737322139998,0.00090174,104630.0,104600.0,0.191204]
[1737322140188,0.00090174,104630.0,104620.0,0.095584]
[1737322140362,0.00090174,104630.0,104620.0,0.26975206]
[1737322140534,0.00090174,104630.0,104620.0,0.36426555]
[1737322140822,0.00090174,104630.0,104620.0,0.36645832]
[1737322141067,0.01468417,104650.0,104640.0,0.24105606]
[1737322141337,0.01428133,104650.0,104640.0,0.48556955]
[1737322141570,0.01629716,104670.0,104660.0,0.095547]
[1737322141848,0.14074967,104700.0,104660.0,0.095547]
[1737322141849,0.33162974,104710.0,104680.0,0.14549106]
[1737322142098,0.27144889,104710.0,104700.0,0.24100106]
[1737322142357,0.00014991,104710.0,104700.0,0.33551455]
[1737322142601,0.00014991,104710.0,104700.0,0.36419155]
[1737322142939,0.00014991,104710.0,104700.0,0.51419155]
[1737322143139,0.00681729,104740.0,104720.0,0.095488]
[1737322143342,0.15367239,104740.0,104700.0,0.57479008]
[1737322143624,0.43913488,104740.0,104700.0,0.40971349]
[1737322143788,0.14589359,104730.0,104700.0,0.028677]
[1737322144307,0.14589359,104730.0,104680.0,0.191042]
[1737322144308,0.0513801,104710.0,104680.0,0.191042]
[1737322144504,0.24139559,104710.0,104660.0,0.64198798]
[1737322144728,0.0513801,104690.0,104670.0,0.095532]
[1737322144917,0.24140459,104700.0,104670.0,0.095532]
[1737322145117,0.24140459,104700.0,104660.0,0.33980947]
[1737322145255,0.13589359,104700.0,104670.0,0.191075]
[1737322145470,0.14589359,104700.0,104670.0,0.1301802]
[1737322145670,0.14589359,104700.0,104670.0,0.0346442]
[1737322145876,0.0513801,104690.0,104660.0,0.28677191]
[1737322146117,0.7,104680.0,104660.0,0.28677191]
[1737322146323,0.0513801,104690.0,104660.0,0.191094]
[1737322146494,0.14589359,104690.0,104670.0,0.286605]
[1737322146699,0.14589359,104690.0,104680.0,0.095529]
[1737322146875,0.06149764,104700.0,104690.0,0.09552]
[1737322147084,0.15601113,104700.0,104680.0,0.286579]
[1737322147288,0.25152313,104700.0,104670.0,0.0977699]
[1737322147538,0.09451349,104690.0,104670.0,0.05]
[1737322147739,0.1469091,104680.0,104670.0,0.05]
[1737322147943,0.19004249,104680.0,104670.0,0.00369713]
[1737322149385,0.09451349,104680.0,104670.0,0.00369713]
[1737322149586,0.14589359,104680.0,104670.0,0.00369713]
[1737322149792,0.24142259,104680.0,104670.0,0.00369713]
[1737322149996,0.14589359,104680.0,104670.0,0.00369713]
[1737322150252,0.0513801,104660.0,104620.0,0.09558]
[1737322150382,0.0513801,104660.0,104620.0,0.09451349]
[1737322150383,0.095557,104650.0,104620.0,0.09451349]
[1737322150567,0.095557,104650.0,104610.0,0.35311657]
[1737322150568,0.43256459,104650.0,104610.0,0.191185]
[1737322150770,0.14589359,104640.0,104600.0,0.245602]
[1737322150971,0.14589359,104640.0,104590.0,0.15894783]
[1737322151171,0.0513801,104600.0,104590.0,0.04387837]
[1737322151416,0.1469741,104610.0,104590.0,0.04387837]
[1737322151620,0.0513801,104600.0,104590.0,0.13948937]
[1737322151995,0.0513801,104620.0,104600.0,0.191204]
[1737322152219,0.09451349,104620.0,104600.0,0.286797]
[1737322152397,0.14589359,104620.0,104610.0,0.095593]
[1737322152575,0.14589359,104620.0,104600.0,0.33903639]
[1737322152790,0.14589359,104620.0,104590.0,0.25440976]
[1737322153157,0.286779,104610.0,104590.0,0.0443779]
[1737322153359,0.286783,104610.0,104600.0,0.00597855]
[1737322153509,0.38125649,104610.0,104600.0,0.00597855]
[1737322153928,0.78125649,104610.0,104600.0,0.00597855]
[1737322154128,0.78125649,104610.0,104570.0,0.20765493]
[1737322154129,0.09562,104580.0,104570.0,0.20765493]
[1737322154390,0.19013349,104580.0,104570.0,0.20765493]
[1737322155048,0.095629,104570.0,104560.0,0.00612141]
[1737322155257,0.15,104600.0,104560.0,0.0946572]
[1737322155450,0.0513801,104600.0,104580.0,0.245619]
[1737322155652,0.3381371,104620.0,104580.0,0.28575349]
[1737322155788,0.2425681,104610.0,104580.0,0.09451349]
[1737322155992,0.2425681,104610.0,104560.0,0.16426943]
[1737322155993,0.095622,104580.0,104560.0,0.16426943]
[1737322156198,0.1469961,104590.0,104560.0,0.1902882]
[1737322156452,0.0513801,104590.0,104560.0,0.39112696]
[1737322156684,0.1470001,104580.0,104560.0,0.00970547]
[1737322156836,0.1470091,104570.0,104560.0,0.00970547]
[1737322157204,0.19014249,104570.0,104560.0,0.09276744]
[1737322157411,0.07306283,104570.0,104560.0,0.09276744]
[1737322157632,0.16869183,104570.0,104560.0,0.09276744]
[1737322158264,0.16869183,104570.0,104560.0,0.00970547]
[1737322158482,0.36489183,104570.0,104560.0,0.00867435]
[1737322158698,0.095657,104540.0,104530.0,0.08306197]
[1737322158902,0.59017049,104540.0,104530.0,0.08311195]
[1737322159103,0.44017049,104540.0,104530.0,0.08311195]
[1737322159331,0.095684,104510.0,104500.0,0.08306197]
[1737322159531,0.44019749,104510.0,104500.0,0.08356089]
[1737322159775,0.34019749,104510.0,104500.0,0.00049892]
[1737322159982,0.19019749,104510.0,104500.0,0.00049892]
[1737322160167,0.49019749,104510.0,104500.0,0.00049892]
[1737322160373,0.49019749,104510.0,104470.0,0.20765493]
[1737322160374,0.4,104500.0,104470.0,0.20765493]
[1737322160681,0.095721,104470.0,104460.0,0.21767724]
[1737322160794,0.19023449,104470.0,104460.0,0.21772724]
[1737322160999,0.29023449,104470.0,104460.0,0.21772724]
[1737322161201,0.19023449,104470.0,104460.0,0.01007231]
[1737322161396,0.59023449,104470.0,104460.0,0.01007231]
[1737322161606,0.29023449,104470.0,104460.0,0.03184503]
[1737322162008,0.29023449,104470.0,104460.0,0.01007231]
[1737322162412,0.79023449,104470.0,104460.0,0.01222931]
[1737322162861,0.64023449,104470.0,104460.0,0.01222931]
[1737322163276,0.495739,104450.0,104440.0,0.0004295]
[1737322163478,0.79025249,104450.0,104440.0,0.0005795]
[1737322163676,0.3,104440.0,104410.0,0.0004285]
[1737322163885,0.19028049,104420.0,104410.0,0.0004285]
[1737322164094,0.1,104410.0,104400.0,0.0004288]
[1737322164335,0.695776,104410.0,104400.0,0.0004288]
[1737322164525,0.197685,104400.0,104390.0,0.0014294]
[1737322164735,0.29219849,104400.0,104390.0,0.0014294]
[1737322164944,0.095803,104380.0,104370.0,0.0002]
[1737322165166,0.26391649,104380.0,104370.0,0.0002]
[1737322165362,0.81406621,104380.0,104370.0,0.0002]
[1737322165568,1.41406621,104380.0,104370.0,0.0002]
[1737322165770,1.58706621,104380.0,104370.0,0.0002]
[1737322165974,1.28706621,104380.0,104370.0,0.0002]
[1737322166192,0.418812,104370.0,104360.0,6e-05]
[1737322166419,0.49032549,104370.0,104360.0,0.00199139]
[1737322166841,0.1,104360.0,104350.0,0.0172681]
[1737322167043,0.44033549,104360.0,104350.0,0.0172681]
[1737322167251,0.38484898,104360.0,104350.0,0.0172681]
[1737322167464,0.19033549,104360.0,104350.0,0.0172681]
[1737322167685,0.44033549,104360.0,104350.0,0.0172681]
[1737322167897,0.29033549,104360.0,104350.0,0.0172681]
[1737322168103,0.19033549,104360.0,104350.0,0.0172681]
[1737322168315,0.09451349,104360.0,104350.0,0.0172681]
[1737322168520,0.09451349,104360.0,104350.0,0.02857891]
[1737322168730,0.09451349,104360.0,104350.0,0.03684043]
[1737322168933,0.09451349,104360.0,104350.0,0.13267143]
[1737322169143,0.0513801,104370.0,104350.0,0.03684043]
[1737322169371,0.14589359,104370.0,104360.0,0.095822]
[1737322169578,0.0513801,104370.0,104360.0,0.287462]
[1737322169786,0.05152982,104380.0,104370.0,0.095812]
[1737322170023,0.05152982,104380.0,104350.0,0.2089251]
[1737322170240,0.05152982,104380.0,104370.0,0.095812]
[1737322170890,0.05152982,104380.0,104370.0,0.00197005]
[1737322171085,0.05152982,104380.0,104370.0,0.09778205]
[1737322171313,0.05152982,104380.0,104370.0,0.00197005]
[1737322171714,0.0513801,104360.0,104350.0,0.0172681]
[1737322171935,0.09451349,104360.0,104350.0,0.0172681]
[1737322172133,0.19033549,104360.0,104350.0,0.0172681]
[1737322172841,0.29033549,104360.0,104350.0,0.0172681]
[1737322173051,0.38484898,104360.0,104350.0,0.0172681]
[1737322173249,0.29033549,104360.0,104350.0,0.0172681]
[1737322173576,0.218843,104340.0,104320.0,0.0060971]
[1737322173788,0.19036249,104330.0,104320.0,0.0060971]
[1737322174347,0.15,104360.0,104350.0,0.095831]
[1737322174667,0.395827,104360.0,104320.0,0.10061059]
[1737322174867,0.0513801,104340.0,104320.0,0.0060971]
[1737322175074,0.0513801,104330.0,104320.0,0.2936681]
[1737322175267,0.0513801,104350.0,104330.0,0.095843]
[1737322175494,0.0001497,104360.0,104330.0,0.38205949]
[1737322175798,0.0513801,104330.0,104320.0,0.0060971]
[1737322176007,0.09451349,104330.0,104320.0,0.0060971]
[1737322176163,0.34036249,104330.0,104320.0,0.0060971]
[1737322176614,0.095858,104320.0,104310.0,0.1002]
[1737322176766,0.27075064,104320.0,104310.0,0.02054193]
[1737322176976,0.3390411,104290.0,104270.0,0.01306997]
[1737322177181,0.19040849,104280.0,104270.0,0.00336997]
[1737322177876,0.19040849,104280.0,104240.0,0.306357]
[1737322177877,0.0513801,104260.0,104240.0,0.01756517]
[1737322178308,0.14589359,104260.0,104230.0,0.287928]
[1737322178509,0.07082505,104250.0,104230.0,0.287928]
[1737322178702,0.01944495,104250.0,104240.0,0.095932]
[1737322178829,0.01944495,104250.0,104230.0,0.096049]
[1737322179054,0.7,104240.0,104230.0,0.096054]
[1737322179279,0.7,104240.0,104230.0,0.000113]
[1737322179505,0.84589359,104240.0,104230.0,0.000113]
[1737322179683,0.7,104240.0,104230.0,0.096054]
[1737322179895,0.7,104240.0,104230.0,0.000113]
[1737322179896,0.56508059,104240.0,104230.0,0.000113]
[1737322180065,0.0513801,104250.0,104230.0,0.000113]
[1737322180266,0.14745455,104250.0,104230.0,0.000113]
[1737322180495,0.1473121,104240.0,104230.0,0.000113]
[1737322180938,0.24182559,104240.0,104230.0,0.000113]
[1737322181102,0.7513801,104240.0,104230.0,0.000113]
[1737322181267,0.89044549,104240.0,104230.0,0.000113]
[1737322181691,0.9212253,104240.0,104230.0,0.000113]
[1737322181980,0.84589359,104240.0,104230.0,0.000113]
[1737322182304,0.7513801,104240.0,104230.0,0.096054]
[1737322182512,0.7,104240.0,104230.0,0.19056749]
[1737322182868,0.00014945,104250.0,104240.0,0.095932]
[1737322183075,0.00014945,104250.0,104240.0,0.19044549]
[1737322183531,0.00014945,104250.0,104240.0,0.28643629]
[1737322183731,0.00014945,104250.0,104240.0,0.19044549]
[1737322184380,0.00014945,104250.0,104230.0,0.437921]
[1737322184551,0.00014945,104250.0,104230.0,0.34056549]
[1737322184743,0.00014945,104250.0,104230.0,0.246052]
[1737322184920,0.33793704,104250.0,104230.0,0.150113]
[1737322185123,0.19044549,104240.0,104230.0,0.150113]
[1737322185391,0.89044549,104240.0,104230.0,0.000113]
[1737322185596,0.195941,104230.0,104220.0,0.0018]
[1737322185771,0.195941,104230.0,104210.0,0.1504301]
[1737322185772,0.09596,104210.0,104200.0,0.0444]
[1737322186572,0.20959408,104210.0,104200.0,0.0444]
[1737322186776,0.2498137,104210.0,104200.0,0.0444]
[1737322186975,0.2498137,104210.0,104150.0,0.51287172]
[1737322186976,0.0513801,104170.0,104150.0,0.51287172]
[1737322187194,0.0513801,104170.0,104160.0,0.24149706]
[1737322187402,0.0513801,104170.0,104160.0,0.096006]
[1737322187833,0.0023099,104190.0,104160.0,0.096006]
[1737322188031,0.14589359,104180.0,104140.0,0.30633528]
[1737322188237,0.0513801,104170.0,104140.0,0.11279677]
[1737322188436,0.09451349,104160.0,104150.0,0.00299979]
[1737322188732,0.29051949,104160.0,104150.0,0.00299979]
[1737322188901,0.29051949,104160.0,104130.0,0.00878589]
[1737322189098,0.09682339,104150.0,104130.0,0.00878589]
[1737322189277,0.0513801,104120.0,104110.0,0.096047]
[1737322189475,0.0513801,104120.0,104110.0,0.288133]
[1737322189682,0.0513801,104120.0,104110.0,0.096047]
[1737322189881,0.01804677,104110.0,104100.0,0.215117]
[1737322190231,0.01804677,104110.0,104100.0,0.119073]
[1737322190232,0.09451349,104110.0,104100.0,0.119073]
[1737322190739,0.7,104120.0,104110.0,0.086352]
[1737322190961,0.66774398,104120.0,104110.0,0.22756549]
[1737322191168,0.66774398,104120.0,104110.0,0.31173615]
[1737322191357,0.15,104130.0,104110.0,0.31173615]
[1737322191358,0.15,104130.0,104120.0,0.08195323]
[1737322191582,0.15,104150.0,104120.0,0.36853872]
[1737322191769,0.15,104160.0,104150.0,0.24150606]
[1737322191984,0.16804677,104190.0,104180.0,0.095987]
[1737322192186,0.15,104180.0,104170.0,0.287972]
[1737322192470,0.01804677,104190.0,104180.0,0.09820418]
[1737322192689,0.69920167,104190.0,104180.0,0.24147806]
[1737322192833,0.66867091,104190.0,104180.0,0.29419275]
[1737322193031,0.15,104240.0,104180.0,0.24490575]
[1737322193236,0.15,104230.0,104220.0,0.24143706]
[1737322193414,0.15,104230.0,104220.0,0.43334106]
[1737322193619,0.06404677,104240.0,104220.0,0.29011394]
[1737322193861,0.01804677,104240.0,104230.0,0.287812]
[1737322194212,0.00019081,104250.0,104240.0,0.095932]
[1737322194416,0.00019081,104250.0,104240.0,0.33742816]
[1737322194567,0.1255,104270.0,104240.0,0.24367905]
[1737322194834,0.01473235,104290.0,104260.0,0.14549106]
[1737322195030,0.15,104270.0,104260.0,0.19042749]
[1737322195353,0.15,104270.0,104260.0,0.62372355]
[1737322195508,0.15,104280.0,104270.0,0.08526765]
[1737322195685,0.15,104320.0,104280.0,0.191777]
[1737322195896,0.15,104320.0,104310.0,0.095868]
[1737322196096,0.15,104340.0,104310.0,0.09451349]
[1737322196304,0.24513493,104360.0,104340.0,0.191667]
[1737322196503,0.15090258,104360.0,104350.0,0.09451349]
[1737322196703,0.00090258,104360.0,104340.0,0.0959053]
[1737322196928,0.01578563,104360.0,104350.0,0.095831]
[1737322197134,0.00105328,104360.0,104330.0,0.191699]
[1737322197449,0.00105328,104360.0,104350.0,0.09451349]
[1737322197625,0.00105328,104360.0,104350.0,0.28625269]
[1737322198183,0.22575625,104390.0,104370.0,0.28743]
[1737322198352,0.14737279,104400.0,104390.0,0.095794]
[1737322198588,0.25246237,104400.0,104350.0,0.19428721]
[1737322198793,0.01057609,104360.0,104350.0,0.09845521]
[1737322199007,0.01057609,104380.0,104350.0,0.09845521]
[1737322199211,0.01057609,104380.0,104370.0,0.095812]
[1737322199397,0.01057609,104410.0,104380.0,0.095796]
[1737322199608,0.01057609,104380.0,104360.0,0.191641]
[1737322199727,0.01057609,104390.0,104360.0,0.287458]
[1737322199928,0.15794888,104400.0,104370.0,0.28613649]
[1737322200132,0.15794888,104410.0,104370.0,0.28613649]
[1737322200371,0.14737279,104410.0,104400.0,0.095785]
[1737322200572,0.01057609,104410.0,104380.0,0.287394]
[1737322200801,0.01057609,104400.0,104380.0,0.00262721]
[1737322200999,0.01057609,104390.0,104380.0,0.09842321]
[1737322201201,0.01057609,104400.0,104390.0,0.09842121]
[1737322201399,0.01057609,104410.0,104400.0,0.095785]
[1737322201624,0.01072662,104410.0,104400.0,0.095776]
[1737322201825,0.00015053,104410.0,104400.0,0.095776]
[1737322202027,0.00015053,104410.0,104400.0,0.1929167]
[1737322202272,0.00019053,104410.0,104400.0,0.1929167]
[1737322202552,0.00019053,104410.0,104400.0,0.2887787]
[1737322202784,0.00076662,104430.0,104410.0,0.19416821]
[1737322202986,0.00076662,104430.0,104410.0,0.28994121]
[1737322203194,0.00076662,104430.0,104410.0,0.09840021]
[1737322203407,0.00076662,104430.0,104400.0,0.64305734]
[1737322203408,0.00076662,104430.0,104420.0,0.00262721]
[1737322203610,0.00076662,104440.0,104420.0,0.00262721]
[1737322203817,0.00076662,104440.0,104430.0,0.00262721]
[1737322204244,0.14066396,104450.0,104440.0,0.00262721]
[1737322204668,0.00091709,104450.0,104420.0,0.16542185]
[1737322204800,0.00091709,104450.0,104430.0,0.28601549]
[1737322205175,0.00091709,104450.0,104440.0,0.095748]
[1737322205314,0.2822351,104450.0,104440.0,0.095748]
[1737322205500,0.2822351,104450.0,104440.0,0.19026149]
[1737322205718,0.2822351,104450.0,104440.0,0.19212708]
[1737322206103,0.00015047,104450.0,104440.0,0.19212708]
[1737322206347,0.00015047,104450.0,104440.0,0.00186559]
[1737322206564,0.09466396,104450.0,104440.0,0.00186559]
[1737322206885,0.09466396,104450.0,104430.0,0.00186559]
[1737322206886,0.00076662,104440.0,104430.0,0.00186559]
[1737322207257,0.33741709,104460.0,104430.0,0.00186559]
[1737322207460,0.33741709,104460.0,104430.0,0.00201606]
[1737322207461,0.175248,104440.0,104430.0,0.00201606]
[1737322207668,0.046,104430.0,104400.0,0.0018628]
[1737322207909,0.09451349,104420.0,104400.0,0.0018628]
[1737322208712,0.09451349,104420.0,104370.0,0.00094176]
[1737322208713,0.24047058,104420.0,104370.0,0.00094176]
[1737322208919,0.095785,104400.0,104370.0,0.09490036]
[1737322209067,0.046,104380.0,104370.0,0.00038687]
[1737322209433,0.14051349,104380.0,104370.0,0.00038687]
[1737322209824,0.09451349,104380.0,104370.0,0.00038687]
[1737322210061,0.09451349,104380.0,104360.0,0.28746]
[1737322210265,0.22545709,104390.0,104360.0,0.287458]
[1737322210469,0.22545709,104390.0,104380.0,0.095803]
[1737322210620,0.14595709,104390.0,104380.0,0.095803]
[1737322210826,0.14595709,104390.0,104370.0,0.095811]
[1737322210988,0.14595709,104400.0,104360.0,0.095814]
[1737322211186,0.09451349,104400.0,104360.0,0.28615749]
[1737322211389,0.191532,104430.0,104370.0,0.287433]
[1737322211601,0.28447323,104440.0,104420.0,0.1]
[1737322211803,0.15,104430.0,104420.0,0.1]
[1737322211999,0.0824,104440.0,104420.0,0.1]
[1737322212207,0.0824,104440.0,104430.0,0.1]
[1737322212406,0.22803886,104450.0,104430.0,0.195757]
[1737322212606,0.22803886,104450.0,104440.0,0.29026149]
[1737322212846,0.08208177,104450.0,104440.0,0.29026149]
[1737322213064,0.08223216,104450.0,104440.0,0.29026149]
[1737322213270,0.08223216,104450.0,104440.0,0.39026149]
[1737322213671,0.00105234,104450.0,104440.0,0.3943044]
[1737322213872,0.00105234,104450.0,104440.0,0.2943044]
[1737322214041,0.00105234,104450.0,104440.0,0.3943044]
[1737322214237,0.00105234,104450.0,104440.0,0.2943044]
[1737322214490,0.00101234,104450.0,104440.0,0.5443044]
[1737322214697,0.08207841,104490.0,104450.0,0.15404291]
[1737322214698,0.07899396,104490.0,104450.0,0.15404291]
[1737322214889,0.12297681,104480.0,104460.0,0.1]
[1737322215199,0.09451349,104480.0,104440.0,0.04547163]
[1737322215443,0.02845749,104470.0,104450.0,0.04142872]
[1737322215639,0.09451349,104480.0,104450.0,0.04142872]
[1737322215938,0.24047058,104480.0,104450.0,0.04142872]
[1737322216114,0.02844992,104470.0,104440.0,0.30322942]
[1737322216684,0.24047058,104480.0,104440.0,0.20748542]
[1737322216856,0.14111349,104470.0,104430.0,0.21149281]
[1737322217101,0.0466,104470.0,104450.0,0.095738]
[1737322217309,0.0466,104470.0,104440.0,0.47750249]
[1737322217515,0.19255709,104470.0,104450.0,0.095736]
[1737322217718,0.12089341,104460.0,104440.0,0.38174849]
[1737322217944,0.12089341,104460.0,104450.0,0.095739]
[1737322218146,0.12089341,104460.0,104450.0,0.19025249]
[1737322218352,0.11993632,104460.0,104450.0,0.29025249]
[1737322218557,0.06993632,104460.0,104450.0,0.2942954]
[1737322218770,0.06371588,104460.0,104450.0,0.2942954]
[1737322218981,0.06071588,104480.0,104470.0,0.095721]
[1737322219195,0.06071588,104480.0,104470.0,0.1942774]
[1737322219398,0.06071588,104480.0,104470.0,0.2942774]
[1737322219572,0.06071588,104480.0,104470.0,0.29023449]
[1737322219789,0.06071588,104480.0,104470.0,0.2942774]
[1737322219992,0.06071588,104480.0,104470.0,0.4442774]
[1737322220203,0.27201019,104530.0,104520.0,0.095675]
[1737322220408,1.03881209,104560.0,104530.0,0.095666]
[1737322220409,0.22686874,104540.0,104530.0,0.095666]
[1737322220615,0.07445511,104550.0,104540.0,0.345657]
[1737322220822,0.00089608,104560.0,104550.0,0.345648]
[1737322221045,0.00089608,104560.0,104550.0,0.60962625]
[1737322221251,0.0009009,104570.0,104560.0,0.34968091]
[1737322221457,0.0179531,104630.0,104610.0,0.286771]
[1737322221657,0.0129531,104630.0,104620.0,0.095584]
[1737322222084,0.0129531,104630.0,104620.0,0.19009749]
[1737322222286,0.01310368,104630.0,104620.0,0.19009749]
[1737322222478,0.01310368,104630.0,104620.0,0.2941404]
[1737322222682,6e-05,104650.0,104630.0,0.1]
[1737322222838,0.04795061,104680.0,104650.0,0.1]
[1737322223043,0.04795061,104680.0,104670.0,0.2940944]
[1737322223258,0.0465,104730.0,104720.0,0.095492]
[1737322223422,0.09945232,104750.0,104740.0,0.195474]
[1737322223423,0.16480941,104750.0,104740.0,0.195474]
[1737322223626,0.01885232,104750.0,104740.0,0.28998749]
[1737322224035,0.01885232,104750.0,104740.0,0.09451349]
[1737322224332,0.01935392,104750.0,104740.0,0.09451349]
[1737322224567,0.16531101,104750.0,104730.0,0.09548]
[1737322224743,0.16531101,104750.0,104730.0,0.38095849]
[1737322224948,0.16531101,104750.0,104710.0,0.1]
[1737322225229,0.16531101,104750.0,104700.0,0.00404291]
[1737322225230,0.00089608,104740.0,104720.0,0.38096949]
[1737322225434,0.00089608,104740.0,104730.0,0.095483]
[1737322225640,0.01054627,104750.0,104740.0,0.095474]
[1737322225845,0.01054627,104750.0,104740.0,0.1940304]
[1737322226068,0.01054627,104750.0,104740.0,0.2940304]
[1737322226277,0.01054627,104750.0,104740.0,0.4440304]